[Event "3rd FIDE WCCC Rapid G12 2019"]
[Site "Minsk"]
[Date "2019.08.16"]
[Round "3.3"]
[White "Komissarova, Soigina"]
[Black "Ivanytska, Liudmyla"]
[Result "1-0"]
[ECO "B41"]
[WhiteElo "1663"]
[BlackElo "1539"]
[Annotator "NA"]
[PlyCount "109"]
[EventDate "2019.08.16"]
[EventType "swiss"]
[EventCountry "BLR"]
[SourceTitle "playchess.com"]
[Source "ChessBase"]
[SourceQuality "1"]
[TimeControl "600+5"]

1. e4 {[%emt 0:00:00]} c5 {[%emt 0:00:00]} 2. Nf3 {[%emt 0:00:00]} e6 {[%emt 0:00:00]} 3. d4 {[%emt 0:00:01]} cxd4 {[%emt 0:00:00]} 4. Nxd4 {[%emt 0:00:01]} a6 {[%emt 0:00:00]} 5. c4 {[%emt 0:00:05]} Nf6 {[%emt 0:00:02]} 6. Nc3 {[%emt 0:00:01]} Bb4 {[%emt 0:00:01]} 7. Qd3 {[%emt 0:00:00]} Bxc3+ {[%emt 0:00:00]} 8. bxc3 {[%emt 0:00:08]} d6 {[%emt 0:00:00]} 9. Be2 {[%emt 0:00:05]} O-O {[%emt 0:00:00]} 10. O-O {[%emt 0:00:04]} Qc7 {[%emt 0:00:01]} 11. f4 {[%emt 0:00:09]} Nbd7 {[%emt 0:00:01]} 12. Ba3 {[%emt 0:00:10]} b6 {[%emt 0:00:15]} 13. Bf3 {[%emt 0:00:06]} e5 {[%emt 0:00:12]} 14. Nf5 {[%emt 0:00:07]} Nc5 {[%emt 0:00:05]} 15. Qxd6 {[%emt 0:00:30]} Qxd6 {[%emt 0:00:02]} 16. Nxd6 {[%emt 0:00:02]} Be6 {[%emt 0:00:13]} 17. Rab1 {[%emt 0:01:40]} Na4 {[%emt 0:00:37]} 18. Rb4 {[%emt 0:02:21]} b5 {[%emt 0:00:15]} 19. cxb5 {[%emt 0:00:38]} Nxc3 {[%emt 0:00:05]} 20. b6 {[%emt 0:00:26]} Nxa2 {[%emt 0:00:18]} 21. Rb2 {[%emt 0:00:02]} Nc3 {[%emt 0:00:12]} 22. Rc1 {[%emt 0:00:52]} Na4 {[%emt 0:00:45]} 23. Rb4 {[%emt 0:00:03]} Bd7 {[%emt 0:00:11]} 24. fxe5 {[%emt 0:00:22]} Ne8 {[%emt 0:00:03]} 25. Nf5 {[%emt 0:00:39]} g6 {[%emt 0:00:48]} 26. Ne3 {[%emt 0:00:22]} Ng7 {[%emt 0:00:32]} 27. Rd4 {[%emt 0:00:33]} Rfd8 {[%emt 0:00:06]} 28. Be7 {[%emt 0:00:10]} Ne6 {[%emt 0:00:03]} 29. Rd6 {[%emt 0:00:19]} Nac5 {[%emt 0:00:41]} 30. Bxd8 {[%emt 0:00:11]} Rxd8 {[%emt 0:00:03]} 31. Rcd1 {[%emt 0:00:15]} Nf8 {[%emt 0:00:16]} 32. Nd5 {[%emt 0:00:25]} Kg7 {[%emt 0:00:11]} 33. Nf6 {[%emt 0:00:01]} h5 {[%emt 0:00:08]} 34. Be2 {[%emt 0:00:14]} Rb8 {[%emt 0:00:20]} 35. Nxd7 {[%emt 0:00:14]} Ncxd7 {[%emt 0:00:08]} 36. Rxd7 {[%emt 0:00:01]} Nxd7 {[%emt 0:00:02]} 37. Rxd7 {[%emt 0:00:01]} Rxb6 {[%emt 0:00:01]} 38. Bc4 {[%emt 0:00:03]} Rb1+ {[%emt 0:00:04]} 39. Kf2 {[%emt 0:00:02]} Rb2+ {[%emt 0:00:01]} 40. Kg3 {[%emt 0:00:07]} h4+ {[%emt 0:00:02]} 41. Kh3 {[%emt 0:00:07]} Rf2 {[%emt 0:00:04]} 42. Bxa6 {[%emt 0:00:10]} Rf4 {[%emt 0:00:35]} 43. e6 {[%emt 0:00:01]} Rxe4 {[%emt 0:00:09]} 44. exf7 {[%emt 0:00:34]} g5 {[%emt 0:00:08]} 45. Bb7 {[%emt 0:00:11]} Re3+ {[%emt 0:00:35]} 46. g3 {[%emt 0:00:12]} hxg3 {[%emt 0:00:04]} 47. hxg3 {[%emt 0:00:02]} Re5 {[%emt 0:00:42]} 48. Bd5 {[%emt 0:00:05]} Rf5 {[%emt 0:00:02]} 49. Rd8 {[%emt 0:00:05]} Rf6 {[%emt 0:00:07]} 50. Rg8+ {[%emt 0:00:06]} Kh7 {[%emt 0:00:03]} 51. f8=Q {[%emt 0:00:13]} g4+ {[%emt 0:00:03]} 52. Kg2 {[%emt 0:00:28]} Rf2+ {[%emt 0:00:05]} 53. Qxf2 {[%emt 0:00:03]} Kh6 {[%emt 0:00:01]} 54. Qf6+ {[%emt 0:00:03]} Kh5 {[%emt 0:00:02]} 55. Qg5# {[%emt 0:00:01]} 1-0

[Event "3rd FIDE WCCC Rapid G12 2019"]
[Site "Minsk"]
[Date "2019.08.16"]
[Round "3.4"]
[White "Lomakina, Anzhelika"]
[Black "Shevtsova, Darya"]
[Result "1-0"]
[ECO "B17"]
[WhiteElo "1732"]
[BlackElo "1588"]
[Annotator "NA"]
[PlyCount "119"]
[EventDate "2019.08.16"]
[EventType "swiss"]
[EventCountry "BLR"]
[SourceTitle "playchess.com"]
[Source "ChessBase"]
[SourceQuality "1"]
[TimeControl "600+5"]

1. e4 {[%emt 0:00:00]} c6 {[%emt 0:00:00]} 2. d4 {[%emt 0:00:00]} d5 {[%emt 0:00:00]} 3. Nd2 {[%emt 0:00:00]} dxe4 {[%emt 0:00:02]} 4. Nxe4 {[%emt 0:00:00]} Nd7 {[%emt 0:00:04]} 5. Ng5 {[%emt 0:00:01]} Ngf6 {[%emt 0:00:22]} 6. Bd3 {[%emt 0:00:07]} e6 {[%emt 0:00:16]} 7. N1f3 {[%emt 0:00:13]} Be7 {[%emt 0:00:12]} 8. Qe2 {[%emt 0:00:21]} O-O {[%emt 0:02:12]} 9. Ne5 {[%emt 0:00:36]} h6 {[%emt 0:00:28]} 10. Ngf3 {[%emt 0:01:34]} c5 {[%emt 0:00:43]} 11. O-O {[%emt 0:02:11]} cxd4 {[%emt 0:01:50]} 12. Bf4 {[%emt 0:01:35]} Nh5 {[%emt 0:01:25]} 13. Nxd7 {[%emt 0:01:40]} Nxf4 {[%emt 0:00:47]} 14. Qe4 {[%emt 0:00:22]} f5 {[%emt 0:01:38]} 15. Qxf4 {[%emt 0:00:39]} Bxd7 {[%emt 0:00:20]} 16. Qxd4 {[%emt 0:00:20]} Bf6 {[%emt 0:00:09]} 17. Qb4 {[%emt 0:00:01]} Qc7 {[%emt 0:00:13]} 18. Rad1 {[%emt 0:00:26]} e5 {[%emt 0:00:18]} 19. Qc4+ {[%emt 0:00:42]} Qxc4 {[%emt 0:00:04]} 20. Bxc4+ {[%emt 0:00:01]} Kh7 {[%emt 0:00:03]} 21. Rxd7 {[%emt 0:00:01]} e4 {[%emt 0:00:06]} 22. Nd4 {[%emt 0:00:12]} Rfd8 {[%emt 0:00:06]} 23. Rxd8 {[%emt 0:00:15]} Rxd8 {[%emt 0:00:02]} 24. Nxf5 {[%emt 0:00:12]} Bxb2 {[%emt 0:00:04]} 25. g3 {[%emt 0:00:09]} Rc8 {[%emt 0:00:09]} 26. Ne3 {[%emt 0:00:04]} Bd4 {[%emt 0:00:03]} 27. Bb3 {[%emt 0:00:03]} b5 {[%emt 0:00:03]} 28. Rd1 {[%emt 0:00:09]} Bb6 {[%emt 0:00:04]} 29. Rd7 {[%emt 0:00:06]} Rc3 {[%emt 0:00:07]} 30. Bd5 {[%emt 0:00:12]} Bxe3 {[%emt 0:00:07]} 31. Bxe4+ {[%emt 0:00:02]} Kg8 {[%emt 0:00:04]} 32. fxe3 {[%emt 0:00:08]} Rxe3 {[%emt 0:00:01]} 33. Bd5+ {[%emt 0:00:08]} Kf8 {[%emt 0:00:02]} 34. Rxa7 {[%emt 0:00:03]} Re2 {[%emt 0:00:03]} 35. Bb3 {[%emt 0:00:06]} b4 {[%emt 0:00:03]} 36. Rb7 {[%emt 0:00:08]} Re4 {[%emt 0:00:01]} 37. Kf2 {[%emt 0:00:02]} g5 {[%emt 0:00:02]} 38. Kf3 {[%emt 0:00:10]} Rd4 {[%emt 0:00:02]} 39. Rh7 {[%emt 0:00:07]} Rd6 {[%emt 0:00:02]} 40. Rh8+ {[%emt 0:00:02]} Ke7 {[%emt 0:00:02]} 41. Rb8 {[%emt 0:00:00]} Rd4 {[%emt 0:00:03]} 42. Rb6 {[%emt 0:00:01]} h5 {[%emt 0:00:04]} 43. Rg6 {[%emt 0:00:05]} g4+ {[%emt 0:00:03]} 44. Ke3 {[%emt 0:00:01]} Rd1 {[%emt 0:00:04]} 45. Rg5 {[%emt 0:00:04]} Re1+ {[%emt 0:00:02]} 46. Kf2 {[%emt 0:00:04]} Kf6 {[%emt 0:00:03]} 47. Rxh5 {[%emt 0:00:01]} Rd1 {[%emt 0:00:04]} 48. Ke2 {[%emt 0:00:06]} Rd4 {[%emt 0:00:02]} 49. Rd5 {[%emt 0:00:07]} Re4+ {[%emt 0:00:02]} 50. Kd3 {[%emt 0:00:02]} Re1 {[%emt 0:00:07]} 51. Rd4 {[%emt 0:00:08]} Kf5 {[%emt 0:00:05]} 52. Rxb4 {[%emt 0:00:04]} Rh1 {[%emt 0:00:02]} 53. Rb5+ {[%emt 0:00:07]} Kg6 {[%emt 0:00:02]} 54. a4 {[%emt 0:00:03]} Rxh2 {[%emt 0:00:02]} 55. a5 {[%emt 0:00:11]} Rg2 {[%emt 0:00:03]} 56. a6 {[%emt 0:00:03]} Rxg3+ {[%emt 0:00:02]} 57. Ke4 {[%emt 0:00:05]} Rg1 {[%emt 0:00:04]} 58. Ra5 {[%emt 0:00:01]} g3 {[%emt 0:00:10]} 59. Kf3 {[%emt 0:00:03]} g2 {[%emt 0:00:09]} 60. Ra4 {[%emt 0:00:13]} 1-0

[Event "3rd FIDE WCCC Rapid G12 2019"]
[Site "Minsk"]
[Date "2019.08.16"]
[Round "3.5"]
[White "Vlasova, Olesia"]
[Black "Nguyen, Le Cam Hien"]
[Result "1-0"]
[ECO "A08"]
[WhiteElo "1799"]
[BlackElo "1579"]
[Annotator "NA"]
[PlyCount "85"]
[EventDate "2019.08.16"]
[EventType "swiss"]
[EventCountry "BLR"]
[SourceTitle "playchess.com"]
[Source "ChessBase"]
[SourceQuality "1"]
[TimeControl "600+5"]

1. Nf3 {[%emt 0:00:00]} d5 {[%emt 0:00:00]} 2. g3 {[%emt 0:00:00]} c5 {[%emt 0:00:07]} 3. Bg2 {[%emt 0:00:00]} Nc6 {[%emt 0:00:04]} 4. d4 {[%emt 0:00:02]} Bf5 {[%emt 0:00:18]} 5. O-O {[%emt 0:00:13]} e6 {[%emt 0:00:03]} 6. c4 {[%emt 0:00:56]} Nf6 {[%emt 0:00:24]} 7. Qa4 {[%emt 0:00:38]} Qd7 {[%emt 0:00:48]} 8. cxd5 {[%emt 0:01:16]} exd5 {[%emt 0:00:46]} 9. Rd1 {[%emt 0:01:37]} c4 {[%emt 0:00:53]} 10. Nc3 {[%emt 0:00:54]} Ne4 {[%emt 0:01:20]} 11. Nh4 {[%emt 0:00:54]} Nxc3 {[%emt 0:00:39]} 12. bxc3 {[%emt 0:00:05]} Be6 {[%emt 0:00:15]} 13. e4 {[%emt 0:02:00]} Be7 {[%emt 0:01:20]} 14. exd5 {[%emt 0:00:34]} Bxd5 {[%emt 0:00:01]} 15. Re1 {[%emt 0:00:10]} O-O-O {[%emt 0:01:56]} 16. Nf3 {[%emt 0:00:28]} Kb8 {[%emt 0:00:29]} 17. Bf4+ Ka8 18. Qc2 {[%emt 0:00:37]} f5 {[%emt 0:00:20]} 19. Ne5 {[%emt 0:00:16]} Nxe5 {[%emt 0:00:05]} 20. Bxe5 {[%emt 0:00:03]} Bxg2 {[%emt 0:00:11]} 21. Kxg2 {[%emt 0:00:00]} Rhg8 {[%emt 0:00:12]} 22. Qe2 {[%emt 0:00:07]} Qc6+ {[%emt 0:00:25]} 23. Qf3 {[%emt 0:00:11]} Qxf3+ {[%emt 0:00:05]} 24. Kxf3 {[%emt 0:00:00]} Bg5 {[%emt 0:00:16]} 25. Rab1 {[%emt 0:00:10]} Bd2 {[%emt 0:00:04]} 26. Red1 {[%emt 0:00:17]} Bxc3 {[%emt 0:00:02]} 27. Rbc1 {[%emt 0:00:00]} Ba5 {[%emt 0:00:10]} 28. Rxc4 {[%emt 0:00:01]} a6 {[%emt 0:00:09]} 29. h4 {[%emt 0:00:11]} g6 {[%emt 0:00:03]} 30. d5 {[%emt 0:00:15]} Rd7 {[%emt 0:00:05]} 31. d6 {[%emt 0:00:04]} Rgd8 {[%emt 0:00:13]} 32. Rdc1 {[%emt 0:00:01]} Kb8 {[%emt 0:00:05]} 33. Rc7 {[%emt 0:00:15]} Ka7 {[%emt 0:00:33]} 34. Rxd7 {[%emt 0:00:01]} Rxd7 {[%emt 0:00:01]} 35. Ke3 {[%emt 0:00:15]} b5 {[%emt 0:00:05]} 36. Kd4 {[%emt 0:00:02]} Kb7 {[%emt 0:00:23]} 37. Kd5 {[%emt 0:00:01]} Bb6 {[%emt 0:00:05]} 38. Ke6 {[%emt 0:00:03]} Rd8 {[%emt 0:00:02]} 39. d7 {[%emt 0:00:02]} a5 {[%emt 0:00:09]} 40. Bf6 {[%emt 0:00:03]} Rg8 {[%emt 0:00:04]} 41. Rd1 {[%emt 0:00:18]} Bd8 {[%emt 0:00:07]} 42. Bxd8 {[%emt 0:00:03]} Rxd8 {[%emt 0:00:01]} 43. Ke7 1-0

[Event "3rd FIDE WCCC Rapid G12 2019"]
[Site "Minsk"]
[Date "2019.08.16"]
[Round "3.6"]
[White "Korovina, Yana"]
[Black "Babic, Masa"]
[Result "0-1"]
[ECO "B10"]
[WhiteElo "1602"]
[BlackElo "1719"]
[Annotator "NA"]
[PlyCount "124"]
[EventDate "2019.08.16"]
[EventType "swiss"]
[EventCountry "BLR"]
[SourceTitle "playchess.com"]
[Source "ChessBase"]
[SourceQuality "1"]
[TimeControl "600+5"]

1. e4 {[%emt 0:00:00]} c6 {[%emt 0:00:00]} 2. Nf3 {[%emt 0:00:01]} d5 {[%emt 0:00:00]} 3. d3 {[%emt 0:00:03]} g6 {[%emt 0:00:05]} 4. Nc3 {[%emt 0:00:39]} Bg7 {[%emt 0:00:12]} 5. exd5 {[%emt 0:00:23]} cxd5 {[%emt 0:00:01]} 6. d4 {[%emt 0:00:01]} Bg4 {[%emt 0:00:24]} 7. Be3 {[%emt 0:00:05]} Nc6 {[%emt 0:00:06]} 8. Bb5 {[%emt 0:00:07]} a6 {[%emt 0:00:01]} 9. Bxc6+ {[%emt 0:00:08]} bxc6 {[%emt 0:00:02]} 10. h3 {[%emt 0:00:01]} Bxf3 {[%emt 0:00:10]} 11. Qxf3 {[%emt 0:00:04]} Qb6 {[%emt 0:00:08]} 12. Ne2 {[%emt 0:01:41]} Qxb2 {[%emt 0:00:24]} 13. O-O {[%emt 0:00:04]} Nf6 {[%emt 0:00:58]} 14. Rfb1 {[%emt 0:00:17]} Qa3 {[%emt 0:00:28]} 15. Rb3 {[%emt 0:00:20]} Qd6 {[%emt 0:00:32]} 16. Bf4 {[%emt 0:00:38]} Qd7 {[%emt 0:00:13]} 17. Rab1 {[%emt 0:00:15]} O-O {[%emt 0:00:18]} 18. Rb7 {[%emt 0:00:20]} Qf5 19. Rxe7 {[%emt 0:00:58]} Qxc2 {[%emt 0:02:19]} 20. Rc1 {[%emt 0:00:18]} Qa4 {[%emt 0:00:19]} 21. Be5 {[%emt 0:00:27]} Nh5 {[%emt 0:01:14]} 22. Bxg7 {[%emt 0:01:14]} Nxg7 {[%emt 0:00:24]} 23. Qf6 {[%emt 0:00:10]} Nf5 {[%emt 0:00:22]} 24. Rc7 {[%emt 0:00:09]} Qxa2 {[%emt 0:00:56]} 25. Ng3 {[%emt 0:01:10]} Nxg3 {[%emt 0:00:13]} 26. fxg3 {[%emt 0:00:02]} Rae8 {[%emt 0:01:13]} 27. Rf1 {[%emt 0:00:49]} Re6 {[%emt 0:00:32]} 28. Qf4 {[%emt 0:00:14]} Re2 {[%emt 0:00:15]} 29. Qf3 {[%emt 0:00:04]} Qd2 {[%emt 0:00:02]} 30. Rxf7 {[%emt 0:00:10]} Rxg2+ {[%emt 0:00:02]} 31. Qxg2 {[%emt 0:00:09]} Qxd4+ {[%emt 0:00:04]} 32. Kh2 {[%emt 0:00:09]} Rxf7 33. Rxf7 Kxf7 {[%emt 0:00:02]} 34. Qf3+ {[%emt 0:00:11]} Qf6 {[%emt 0:00:01]} 35. Qe2 {[%emt 0:00:11]} c5 {[%emt 0:00:04]} 36. Qa2 {[%emt 0:00:12]} Qe6 {[%emt 0:00:04]} 37. Qc2 {[%emt 0:00:05]} c4 {[%emt 0:00:02]} 38. Qd2 {[%emt 0:00:03]} Qe4 {[%emt 0:00:06]} 39. Qf2+ {[%emt 0:00:12]} Ke7 {[%emt 0:00:03]} 40. Qa7+ {[%emt 0:00:01]} Ke6 {[%emt 0:00:04]} 41. Qxa6+ {[%emt 0:00:03]} Ke5 {[%emt 0:00:02]} 42. Qa1+ {[%emt 0:00:04]} d4 {[%emt 0:00:03]} 43. Qa5+ {[%emt 0:00:05]} Qd5 {[%emt 0:00:01]} 44. Qc7+ {[%emt 0:00:01]} Ke4 {[%emt 0:00:19]} 45. Qxh7 {[%emt 0:00:08]} Qe6 {[%emt 0:00:04]} 46. Qh4+ {[%emt 0:00:04]} Kd3 {[%emt 0:00:01]} 47. Qh7 {[%emt 0:00:38]} c3 {[%emt 0:00:03]} 48. Qb7 {[%emt 0:00:08]} Qe2+ {[%emt 0:00:04]} 49. Kg1 {[%emt 0:00:03]} Qe3+ {[%emt 0:00:02]} 50. Kh2 {[%emt 0:00:04]} Qf2+ {[%emt 0:00:03]} 51. Kh1 {[%emt 0:00:00]} Qxg3 {[%emt 0:00:04]} 52. Qb5+ {[%emt 0:00:02]} Kd2 {[%emt 0:00:01]} 53. Qd7 {[%emt 0:00:20]} d3 {[%emt 0:00:02]} 54. Qb5 {[%emt 0:00:15]} c2 {[%emt 0:00:02]} 55. Qb4+ {[%emt 0:00:02]} Kd1 {[%emt 0:00:02]} 56. h4 {[%emt 0:00:05]} Qe1+ {[%emt 0:00:04]} 57. Qxe1+ {[%emt 0:00:02]} Kxe1 {[%emt 0:00:01]} 58. h5 {[%emt 0:00:01]} gxh5 {[%emt 0:00:02]} 59. Kg1 {[%emt 0:00:01]} c1=Q {[%emt 0:00:04]} 60. Kh2 {[%emt 0:00:02]} Qd2+ {[%emt 0:00:02]} 61. Kh1 {[%emt 0:00:03]} Qg5 {[%emt 0:00:02]} 62. Kh2 {[%emt 0:00:02]} Kf2 {[%emt 0:00:02]} 0-1

[Event "3rd FIDE WCCC Rapid G12 2019"]
[Site "Minsk"]
[Date "2019.08.16"]
[Round "4.1"]
[White "Vlasova, Olesia"]
[Black "Kirdyashkina, Ekaterina"]
[Result "1-0"]
[ECO "A08"]
[WhiteElo "1799"]
[BlackElo "1691"]
[Annotator "NA"]
[PlyCount "153"]
[EventDate "2019.08.16"]
[EventType "swiss"]
[EventCountry "BLR"]
[SourceTitle "playchess.com"]
[Source "ChessBase"]
[SourceQuality "1"]
[TimeControl "600+5"]

1. Nf3 {[%emt 0:00:00]} d5 {[%emt 0:00:00]} 2. g3 {[%emt 0:00:00]} c5 {[%emt 0:00:03]} 3. Bg2 {[%emt 0:00:00]} Nc6 {[%emt 0:00:06]} 4. d4 {[%emt 0:00:00]} cxd4 {[%emt 0:00:02]} 5. Nxd4 {[%emt 0:00:00]} e5 {[%emt 0:00:02]} 6. Nxc6 {[%emt 0:00:01]} bxc6 {[%emt 0:00:02]} 7. O-O {[%emt 0:00:10]} Nf6 {[%emt 0:00:03]} 8. c4 {[%emt 0:00:02]} g6 {[%emt 0:00:08]} 9. Bg5 {[%emt 0:00:10]} Bg7 {[%emt 0:01:01]} 10. cxd5 {[%emt 0:00:26]} cxd5 {[%emt 0:00:07]} 11. Bxf6 {[%emt 0:00:02]} Bxf6 {[%emt 0:00:18]} 12. Bxd5 {[%emt 0:00:27]} Rb8 {[%emt 0:00:04]} 13. Bc6+ {[%emt 0:00:59]} Bd7 {[%emt 0:00:15]} 14. Qd6 {[%emt 0:00:50]} Bxc6 {[%emt 0:00:03]} 15. Qxc6+ {[%emt 0:00:04]} Kf8 {[%emt 0:00:22]} 16. Nc3 {[%emt 0:00:40]} Kg7 {[%emt 0:00:55]} 17. Rad1 {[%emt 0:00:04]} Qb6 {[%emt 0:00:09]} 18. Qxb6 {[%emt 0:00:31]} Rxb6 {[%emt 0:00:05]} 19. b3 {[%emt 0:00:11]} Rc6 {[%emt 0:00:04]} 20. Ne4 {[%emt 0:01:43]} Rc2 {[%emt 0:00:05]} 21. Rd2 {[%emt 0:00:52]} Rxd2 {[%emt 0:00:07]} 22. Nxd2 {[%emt 0:00:01]} Rc8 {[%emt 0:00:01]} 23. Nc4 {[%emt 0:00:06]} Rd8 {[%emt 0:00:01]} 24. Kg2 {[%emt 0:00:19]} e4 {[%emt 0:00:33]} 25. Rc1 {[%emt 0:00:12]} Bg5 {[%emt 0:00:05]} 26. Rc2 {[%emt 0:00:04]} Rc8 {[%emt 0:01:17]} 27. h4 {[%emt 0:00:38]} Bf6 {[%emt 0:00:12]} 28. Rd2 {[%emt 0:00:09]} Rc7 {[%emt 0:00:08]} 29. Nd6 {[%emt 0:01:42]} Re7 {[%emt 0:00:09]} 30. Nc4 {[%emt 0:00:31]} Rc7 {[%emt 0:00:06]} 31. Rd5 {[%emt 0:00:11]} Kf8 {[%emt 0:00:48]} 32. Kf1 {[%emt 0:00:11]} Bg7 {[%emt 0:00:33]} 33. Ke1 {[%emt 0:00:13]} Bc3+ {[%emt 0:00:04]} 34. Kd1 {[%emt 0:00:06]} f5 {[%emt 0:00:08]} 35. e3 {[%emt 0:00:31]} Bf6 {[%emt 0:00:06]} 36. Ke2 {[%emt 0:00:03]} Ke7 {[%emt 0:00:11]} 37. h5 {[%emt 0:00:28]} Ke6 {[%emt 0:00:09]} 38. Rd6+ {[%emt 0:00:02]} Ke7 {[%emt 0:00:01]} 39. hxg6 {[%emt 0:00:25]} hxg6 {[%emt 0:00:41]} 40. Rd1 {[%emt 0:00:00]} Ke6 {[%emt 0:00:06]} 41. Rg1 {[%emt 0:00:02]} Rh7 {[%emt 0:00:03]} 42. g4 {[%emt 0:00:08]} Rh2 {[%emt 0:00:09]} 43. gxf5+ {[%emt 0:00:05]} gxf5 {[%emt 0:00:05]} 44. Rg6 {[%emt 0:00:04]} Kf7 {[%emt 0:00:04]} 45. Rg1 {[%emt 0:00:04]} Bh4 {[%emt 0:00:04]} 46. Rf1 {[%emt 0:00:00]} Ke6 {[%emt 0:00:05]} 47. a3 {[%emt 0:00:17]} Kd5 {[%emt 0:00:14]} 48. Nd2 {[%emt 0:00:01]} Be7 {[%emt 0:00:05]} 49. b4 {[%emt 0:00:02]} Kc6 {[%emt 0:00:05]} 50. Rc1+ {[%emt 0:00:02]} Kb5 {[%emt 0:00:06]} 51. Nf1 {[%emt 0:00:06]} Rg2 {[%emt 0:00:07]} 52. Ng3 {[%emt 0:00:04]} Bh4 {[%emt 0:00:08]} 53. Rc5+ {[%emt 0:00:08]} Kb6 {[%emt 0:00:11]} 54. Kf1 {[%emt 0:00:06]} Rh2 {[%emt 0:00:12]} 55. Rxf5 {[%emt 0:00:06]} Bxg3 {[%emt 0:00:06]} 56. fxg3 {[%emt 0:00:01]} Ra2 {[%emt 0:00:03]} 57. Rf4 {[%emt 0:00:11]} Rxa3 {[%emt 0:00:04]} 58. Rxe4 {[%emt 0:00:02]} Ra2 {[%emt 0:00:02]} 59. g4 {[%emt 0:00:07]} Rh2 {[%emt 0:00:06]} 60. Kg1 {[%emt 0:00:04]} Rh4 {[%emt 0:00:03]} 61. Kg2 {[%emt 0:00:02]} Kc6 {[%emt 0:00:03]} 62. Kg3 {[%emt 0:00:01]} Rh1 {[%emt 0:00:03]} 63. Kf4 {[%emt 0:00:05]} Kd5 {[%emt 0:00:04]} 64. Rd4+ {[%emt 0:00:08]} Ke6 {[%emt 0:00:04]} 65. e4 {[%emt 0:00:13]} Rf1+ {[%emt 0:00:03]} 66. Kg5 {[%emt 0:00:01]} Ke5 {[%emt 0:00:00]} 67. Rc4 {[%emt 0:00:03]} Rg1 {[%emt 0:00:12]} 68. Kh5 {[%emt 0:00:04]} Rh1+ {[%emt 0:00:03]} 69. Kg6 {[%emt 0:00:01]} Rg1 {[%emt 0:00:01]} 70. g5 {[%emt 0:00:02]} Kf4 {[%emt 0:00:01]} 71. Kf6 {[%emt 0:00:13]} Rf1 {[%emt 0:00:14]} 72. g6 {[%emt 0:00:02]} Kg4+ {[%emt 0:00:02]} 73. Kg7 {[%emt 0:00:03]} Kg5 {[%emt 0:00:12]} 74. Rc5+ {[%emt 0:00:03]} Kg4 {[%emt 0:00:03]} 75. Kg8 {[%emt 0:00:09]} Re1 {[%emt 0:00:05]} 76. g7 {[%emt 0:00:13]} Rxe4 {[%emt 0:00:15]} 77. Kh8 {[%emt 0:00:02]} 1-0

[Event "3rd FIDE WCCC Rapid G12 2019"]
[Site "Minsk"]
[Date "2019.08.16"]
[Round "4.2"]
[White "Shubenkova, Veronika"]
[Black "Lomakina, Anzhelika"]
[Result "1-0"]
[ECO "E00"]
[WhiteElo "1740"]
[BlackElo "1732"]
[Annotator "NA"]
[PlyCount "99"]
[EventDate "2019.08.16"]
[EventType "swiss"]
[EventCountry "BLR"]
[SourceTitle "playchess.com"]
[Source "ChessBase"]
[SourceQuality "1"]
[TimeControl "600+5"]

1. d4 {[%emt 0:00:00]} Nf6 {[%emt 0:00:00]} 2. c4 {[%emt 0:00:08]} e6 {[%emt 0:00:00]} 3. a3 {[%emt 0:00:02]} d5 {[%emt 0:00:15]} 4. Nc3 {[%emt 0:00:02]} c5 {[%emt 0:00:32]} 5. e3 {[%emt 0:01:20]} Nc6 {[%emt 0:00:07]} 6. Nf3 {[%emt 0:00:17]} a6 {[%emt 0:01:05]} 7. cxd5 {[%emt 0:00:12]} exd5 {[%emt 0:00:03]} 8. dxc5 {[%emt 0:00:26]} Bxc5 {[%emt 0:00:02]} 9. b4 {[%emt 0:00:09]} Bb6 {[%emt 0:01:15]} 10. Be2 {[%emt 0:00:35]} O-O {[%emt 0:00:08]} 11. O-O {[%emt 0:00:04]} Bg4 {[%emt 0:00:05]} 12. Bb2 {[%emt 0:00:03]} Bc7 {[%emt 0:00:51]} 13. Na4 {[%emt 0:00:08]} Qd6 {[%emt 0:01:02]} 14. g3 {[%emt 0:00:46]} Ne4 {[%emt 0:00:39]} 15. Nd4 {[%emt 0:00:47]} Bh3 {[%emt 0:01:32]} 16. Re1 {[%emt 0:00:05]} Ne5 {[%emt 0:00:23]} 17. Bf1 {[%emt 0:01:00]} Qh6 {[%emt 0:01:52]} 18. Qe2 {[%emt 0:02:32]} Nc4 {[%emt 0:01:17]} 19. Bc1 {[%emt 0:00:25]} b5 {[%emt 0:00:18]} 20. Nb2 {[%emt 0:00:10]} Ne5 {[%emt 0:00:05]} 21. Bxh3 {[%emt 0:01:07]} Qxh3 {[%emt 0:00:01]} 22. f3 {[%emt 0:00:23]} Nxg3 {[%emt 0:00:07]} 23. hxg3 {[%emt 0:00:05]} Qxg3+ {[%emt 0:00:00]} 24. Kf1 {[%emt 0:00:02]} Qh4 {[%emt 0:00:12]} 25. Qf2 {[%emt 0:00:03]} Qh3+ {[%emt 0:00:01]} 26. Ke2 {[%emt 0:00:04]} Rac8 {[%emt 0:00:02]} 27. Bd2 {[%emt 0:00:06]} Bb6 {[%emt 0:00:07]} 28. Rh1 {[%emt 0:00:09]} Qd7 {[%emt 0:00:06]} 29. Qh4 {[%emt 0:00:07]} h6 {[%emt 0:00:03]} 30. Nd3 {[%emt 0:00:11]} Bxd4 {[%emt 0:00:05]} 31. Qxd4 {[%emt 0:00:06]} Nc4 {[%emt 0:00:05]} 32. Rag1 {[%emt 0:00:05]} f6 {[%emt 0:00:12]} 33. Rxh6 {[%emt 0:00:06]} Qc6 {[%emt 0:00:03]} 34. Rhg6 {[%emt 0:00:10]} Rc7 {[%emt 0:00:02]} 35. Nc5 {[%emt 0:00:22]} Qd6 {[%emt 0:00:04]} 36. Bc3 {[%emt 0:00:09]} Ne5 {[%emt 0:00:04]} 37. R6g2 {[%emt 0:00:03]} Re7 {[%emt 0:00:06]} 38. Rd1 {[%emt 0:00:13]} Rd8 {[%emt 0:00:07]} 39. Ne4 {[%emt 0:00:04]} Qc6 {[%emt 0:00:04]} 40. Nxf6+ {[%emt 0:00:16]} Qxf6 {[%emt 0:00:03]} 41. f4 {[%emt 0:00:01]} Qh6 {[%emt 0:00:10]} 42. fxe5 {[%emt 0:00:02]} Qh5+ {[%emt 0:00:01]} 43. Qg4 {[%emt 0:00:03]} Qh6 {[%emt 0:00:04]} 44. Bd4 {[%emt 0:00:02]} Rc7 {[%emt 0:00:03]} 45. Qg6 {[%emt 0:00:09]} Rc2+ {[%emt 0:00:12]} 46. Qxc2 {[%emt 0:00:02]} Qh3 {[%emt 0:00:02]} 47. Qg6 {[%emt 0:00:03]} Rd7 {[%emt 0:00:01]} 48. e6 {[%emt 0:00:01]} Rc7 {[%emt 0:00:03]} 49. Rdg1 {[%emt 0:00:05]} Rc4 {[%emt 0:00:15]} 50. Qxg7# 1-0